fUSD/lending_fUSD_20260406
["ID","MTS","AMOUNT","RATE_DAILY","PERIOD"]
[419878183,1775459441596,-500.0,0.00014402,2]
[419878184,1775459441606,-500.0,0.00014404,2]
[419878185,1775459441615,-500.0,0.00014404,2]
[419878186,1775459441625,-500.0,0.00014404,2]
[419878187,1775459441635,-500.0,0.00014404,2]
[419878188,1775459441644,-500.0,0.00014404,2]
[419878189,1775459441654,-500.0,0.00014404,2]
[419878190,1775459441663,-500.0,0.00014404,2]
[419878191,1775459441673,-500.0,0.00014404,2]
[419878192,1775459441683,-500.0,0.00014404,2]
[419878193,1775459441693,-500.0,0.00014404,2]
[419878194,1775459441703,-500.0,0.00014404,2]
[419878195,1775459441712,-500.0,0.00014404,2]
[419878196,1775459441722,-500.0,0.00014404,2]
[419878197,1775459441732,-500.0,0.00014404,2]
[419878198,1775459441741,-500.0,0.00014404,2]
[419878199,1775459441751,-500.0,0.00014404,2]
[419878200,1775459441760,-500.0,0.00014404,2]
[419878201,1775459441770,-500.0,0.00014404,2]
[419878202,1775459441780,-500.0,0.00014404,2]
[419878203,1775459441790,-500.0,0.00014404,2]
[419878204,1775459441800,-500.0,0.00014404,2]
[419878205,1775459441810,-508.61892667,0.00014404,2]
[419878206,1775459441819,-500.0,0.00014404,2]
[419878207,1775459441829,-500.0,0.00014404,2]
[419878208,1775459441839,-500.0,0.00014404,2]
[419878209,1775459441849,-500.0,0.00014404,2]
[419878210,1775459441859,-500.0,0.00014404,2]
[419878211,1775459441869,-500.0,0.00014404,2]
[419878212,1775459441878,-500.0,0.00014404,2]
[419878213,1775459441888,-500.0,0.00014404,2]
[419878214,1775459441898,-500.0,0.00014404,2]
[419878215,1775459441907,-500.0,0.00014404,2]
[419878216,1775459441918,-500.0,0.00014404,2]
[419878217,1775459441927,-500.0,0.00014404,2]
[419878218,1775459441937,-500.0,0.00014404,2]
[419878219,1775459441947,-500.0,0.00014404,2]
[419878220,1775459441957,-500.0,0.00014404,2]
[419878221,1775459441966,-500.0,0.00014404,2]
[419878222,1775459441975,-500.0,0.00014404,2]
[419878223,1775459441985,-500.0,0.00014404,2]
[419878224,1775459441994,-500.0,0.00014404,2]
[419878225,1775459442004,-500.0,0.00014404,2]
[419878226,1775459442013,-500.0,0.00014404,2]
[419878227,1775459442022,-500.0,0.00014404,2]
[419878228,1775459442032,-500.0,0.00014404,2]
[419878229,1775459442041,-500.0,0.00014404,2]
[419878230,1775459442051,-500.0,0.00014404,2]
[419878231,1775459442060,-500.0,0.00014404,2]
[419878232,1775459442070,-500.0,0.00014404,2]
[419878233,1775459442376,-500.0,0.00014404,2]
[419878234,1775459442426,-500.0,0.00014404,2]
[419878235,1775459442436,-500.0,0.00014404,2]
[419878236,1775459442447,-160.0,0.00014426,2]
[419878237,1775459442456,-252.967147,0.00014426,2]
[419878238,1775459442467,-345.934294,0.00014426,2]
[419878239,1775459442477,-152.0,0.00014443,32]
[419878240,1775459442488,-15481.96176015,0.00014482,2]
[419878241,1775459442498,-152.0,0.00014491,33]
[419878242,1775459442508,-1000.0,0.00014521,2]
[419878243,1775459442517,-1000.0,0.00014521,2]
[419878244,1775459442527,-152.0,0.00014538,34]
[419878245,1775459442537,-206.841829,0.00014579,7]
[419878246,1775459442547,-218.637807,0.00014579,7]
[419878247,1775459442556,-160.459117,0.00014579,7]
[419878248,1775459442566,-152.0,0.00014586,35]
[419878249,1775459442576,-255.0,0.00014616,2]
[419878250,1775459442587,-152.0,0.00014633,36]
[419878251,1775459442597,-169.609935,0.00014646,7]
[419878252,1775459442607,-1500.0,0.00014668,2]
[419878253,1775459442617,-1500.0,0.00014668,2]
[419878254,1775459442627,-156.64232712,0.00014671,2]
[419878255,1775459442637,-152.0,0.0001468,37]
[419878256,1775459442646,-15339.52896745,0.00014718,2]
[419878271,1775459443866,-142.4327927,0.00014718,2]
[419878272,1775459443876,-646.02585924,0.0001472,2]
[419878329,1775459444503,-415.0,0.00013953,2]
[419878331,1775459444513,-2164.97414076,0.0001472,2]
[419878333,1775459444523,-1573.0,0.0001472,2]
[419878334,1775459444533,-2811.0,0.0001472,2]
[419878336,1775459444542,-1573.0,0.0001472,2]
[419878338,1775459444551,-1573.0,0.0001472,2]
[419878340,1775459444561,-162.0,0.0001472,2]
[419878342,1775459444571,-581.10685342,0.00014721,2]
[419878344,1775459444580,-1000.0,0.00014721,2]
[419878346,1775459444589,-1000.0,0.00014721,2]
[419878348,1775459444599,-152.0,0.00014728,38]
[419878350,1775459444608,-152.0,0.00014775,39]
[419878352,1775459444618,-499.51015298,0.00014781,2]
[419878354,1775459444627,-152.0,0.00014823,40]
[419878356,1775459444637,-1680.0,0.00014846,2]
[419878358,1775459444647,-152.0,0.0001487,41]
[419878360,1775459444657,-500.0,0.00014913,2]
[419878362,1775459444666,-500.0,0.00014913,2]
[419878364,1775459444676,-500.0,0.00014913,2]
[419878366,1775459444686,-500.0,0.00014913,2]
[419878368,1775459444695,-500.0,0.00014913,2]
[419878370,1775459444705,-500.0,0.00014913,2]
[419878372,1775459444715,-500.0,0.00014913,2]
[419878374,1775459444725,-500.0,0.00014913,2]
[419878376,1775459444734,-500.0,0.00014913,2]
[419878378,1775459444743,-500.0,0.00014913,2]
[419878380,1775459444753,-500.0,0.00014913,2]
[419878382,1775459444762,-500.0,0.00014913,2]
[419878384,1775459444771,-500.0,0.00014913,2]
[419878386,1775459444780,-500.0,0.00014913,2]
[419878387,1775459444789,-500.0,0.00014913,2]
[419878389,1775459444798,-500.0,0.00014913,2]
[419878391,1775459444807,-816.0,0.00014913,2]
[419878393,1775459444816,-500.0,0.00014913,2]
[419878395,1775459444825,-500.0,0.00014913,2]
[419878397,1775459444834,-500.0,0.00014913,2]
[419878399,1775459444844,-500.0,0.00014913,2]
[419878401,1775459444853,-500.0,0.00014913,2]
[419878403,1775459444862,-500.0,0.00014913,2]
[419878405,1775459444871,-500.0,0.00014913,2]
[419878407,1775459444880,-500.0,0.00014913,2]
[419878409,1775459444889,-500.0,0.00014913,2]
[419878411,1775459444898,-500.0,0.00014913,2]
[419878412,1775459444909,-500.0,0.00014913,2]
[419878413,1775459444918,-500.0,0.00014913,2]
[419878414,1775459444927,-500.0,0.00014913,2]
[419878415,1775459444937,-500.0,0.00014913,2]
[419878416,1775459444946,-500.0,0.00014913,2]
[419878417,1775459444955,-500.0,0.00014913,2]
[419878418,1775459444964,-500.0,0.00014913,2]
[419878419,1775459444974,-500.0,0.00014913,2]
[419878420,1775459444983,-500.0,0.00014913,2]
[419878421,1775459444992,-500.0,0.00014913,2]
[419878422,1775459445002,-500.0,0.00014913,2]
[419878423,1775459445012,-500.0,0.00014913,2]
[419878424,1775459445022,-500.0,0.00014913,2]
[419878425,1775459445031,-500.0,0.00014913,2]
[419878426,1775459445040,-500.0,0.00014913,2]
[419878427,1775459445049,-500.0,0.00014913,2]
[419878428,1775459445058,-500.0,0.00014913,2]
[419878429,1775459445067,-500.0,0.00014913,2]
[419878430,1775459445077,-500.0,0.00014913,2]
[419878431,1775459445086,-500.0,0.00014913,2]
[419878432,1775459445095,-500.0,0.00014913,2]
[419878433,1775459445105,-500.0,0.00014913,2]
[419878434,1775459445114,-500.0,0.00014913,2]
[419878435,1775459445123,-500.0,0.00014913,2]
[419878436,1775459445132,-500.0,0.00014913,2]
[419878437,1775459445142,-500.0,0.00014913,2]
[419878438,1775459445151,-500.0,0.00014913,2]
[419878439,1775459445160,-152.0,0.00014918,42]
[419878440,1775459445170,-150.0,0.00014933,2]
[419878441,1775459445179,-150.0,0.00014933,2]
[419878442,1775459445188,-15481.96176015,0.00014955,2]
[419878443,1775459445198,-152.0,0.00014965,43]
[419878444,1775459445207,-152.0,0.00015012,44]
[419878445,1775459445216,-500.0,0.00015036,2]
[419878446,1775459445226,-500.0,0.00015036,2]
[419878447,1775459445235,-500.0,0.00015036,2]
[419878448,1775459445244,-500.0,0.00015036,2]
[419878449,1775459445253,-500.0,0.00015036,2]
[419878450,1775459445262,-1367.0,0.0001504,2]
[419878451,1775459445271,-162.0,0.0001504,2]
[419878452,1775459445280,-2000.0,0.00015058,2]
[419878453,1775459445290,-500.0,0.00015058,2]
[419878454,1775459445299,-2000.0,0.00015058,2]
[419878455,1775459445308,-500.0,0.00015058,2]
[419878456,1775459445317,-152.0,0.0001506,45]
[419878457,1775459445327,-1500.0,0.00015068,2]
[419878458,1775459445336,-1104.4544063,0.00015068,2]
[419878459,1775459445345,-252.05,0.00015068,2]
[419878460,1775459445354,-152.0,0.00015107,46]
[419878461,1775459445363,-344.9552,0.00015147,2]
[419878462,1775459445372,-152.0,0.00015155,47]
[419878463,1775459445381,-277.32,0.00015172,2]
[419878464,1775459445390,-3000.0,0.00015178,2]
[419878465,1775459445399,-1700.0,0.00015178,2]
[419878466,1775459445409,-15481.96176015,0.00015191,2]
[419878467,1775459445419,-500.0,0.00015195,2]
[419878468,1775459445428,-500.0,0.00015195,2]
[419878469,1775459445438,-500.0,0.00015195,2]
[419878470,1775459445447,-578.20924308,0.00015196,2]
[419878471,1775459445456,-200.0,0.00015196,2]
[419878472,1775459445465,-3283.41717271,0.00015196,2]
[419878473,1775459445474,-500.0,0.00015196,2]
[419878474,1775459445483,-695.39793187,0.00015196,2]
[419878475,1775459445492,-500.0,0.00015196,2]
[419878476,1775459445501,-500.0,0.00015196,2]
[419878477,1775459445510,-500.0,0.00015196,2]
[419878478,1775459445520,-500.0,0.00015196,2]
[419878479,1775459445529,-500.0,0.00015196,2]
[419878480,1775459445538,-500.0,0.00015196,2]
[419878481,1775459445547,-500.0,0.00015196,2]
[419878482,1775459445556,-500.0,0.00015196,2]
[419878483,1775459445565,-500.0,0.00015196,2]
[419878484,1775459445574,-500.0,0.00015196,2]
[419878485,1775459445583,-500.0,0.00015196,2]
[419878486,1775459445592,-500.0,0.00015196,2]
[419878487,1775459445602,-1377.42282659,0.00015196,2]
[419878488,1775459445611,-1119.55358363,0.00015196,2]
[419878489,1775459445620,-3000.0,0.00015196,2]
[419878490,1775459445629,-151.0,0.00015196,2]
[419878491,1775459445638,-2627.46733313,0.00015196,2]
[419878492,1775459445647,-743.50770149,0.00015196,2]
[419878493,1775459445656,-174.61919141,0.00015196,2]
[419878494,1775459445665,-359.56877178,0.00015196,2]
[419878495,1775459445675,-150.0,0.000152,2]
[419878496,1775459445685,-5196.85858256,0.000152,2]
[419878497,1775459445694,-5000.0,0.000152,2]
[419878498,1775459445704,-5000.0,0.000152,2]
[419878499,1775459445713,-5000.0,0.000152,2]
[419878500,1775459445723,-5000.0,0.000152,2]
[419878501,1775459445732,-152.0,0.00015202,48]
[419878502,1775459445741,-2009.60812882,0.00015216,2]
[419878503,1775459445750,-347.50054029,0.00015216,2]
[419878504,1775459445760,-152.0,0.0001525,49]
[419878505,1775459445770,-500.0,0.00015251,2]
[419878506,1775459445779,-151.0,0.00015251,2]
[419878507,1775459445788,-1500.0,0.00015268,2]
[419878508,1775459445797,-1500.0,0.00015268,2]
[419878509,1775459445806,-152.0,0.00015297,50]
[419878510,1775459445816,-500.0,0.00015306,2]
[419878511,1775459445825,-151.0,0.00015306,2]
[419878512,1775459445835,-350.0,0.00015306,2]
[419878513,1775459445843,-507.0,0.0001533,3]
[419878514,1775459445852,-699.798043,0.00015331,7]
[419878515,1775459445862,-152.0,0.00015344,51]
[419878516,1775459445871,-350.0,0.00015356,3]
[419878517,1775459445880,-162.0,0.0001536,2]
[419878518,1775459445889,-2811.0,0.0001536,2]
[419878519,1775459445898,-2811.0,0.0001536,2]
[419878520,1775459445907,-1573.0,0.0001536,2]
[419878521,1775459445916,-162.0,0.0001536,2]
[419878522,1775459445926,-1573.0,0.0001536,2]
[419878523,1775459445935,-162.0,0.0001536,2]
[419878524,1775459445944,-500.0,0.00015361,2]
[419878525,1775459445953,-151.0,0.00015361,2]
[419878526,1775459445963,-350.0,0.00015383,2]
[419878527,1775459445972,-152.0,0.00015392,52]
[419878528,1775459445981,-500.0,0.00015416,2]
[419878529,1775459445990,-151.0,0.00015416,2]
[419878530,1775459445999,-957.112,0.00015427,2]
[419878531,1775459446009,-182.16741077,0.00015427,2]
[419878532,1775459446018,-15481.96176015,0.00015427,2]
[419878533,1775459446028,-152.0,0.00015439,53]
[419878534,1775459446038,-150.0,0.00015467,2]
[419878535,1775459446047,-150.0,0.00015467,2]
[419878536,1775459446056,-500.0,0.00015471,2]
[419878537,1775459446065,-151.0,0.00015471,2]
[419878538,1775459446075,-500.0,0.00015473,2]
[419878539,1775459446084,-500.0,0.00015473,2]
[419878540,1775459446093,-500.0,0.00015473,2]
[419878541,1775459446102,-500.0,0.00015473,2]
[419878542,1775459446112,-500.0,0.00015473,2]
[419878543,1775459446121,-500.0,0.00015473,2]
[419878544,1775459446131,-2811.0,0.00015474,2]
[419878545,1775459446140,-152.0,0.00015487,54]
[419878546,1775459446150,-167.1506,0.000155,2]
[419878547,1775459446159,-4000.0,0.00015507,2]
[419878548,1775459446168,-500.0,0.00015526,2]
[419878550,1775459446177,-151.0,0.00015526,2]
[419878551,1775459446186,-152.0,0.00015534,55]
[419878552,1775459446195,-500.0,0.00015581,2]
[419878553,1775459446205,-151.0,0.00015581,2]
[419878554,1775459446214,-152.0,0.00015582,56]
[419878555,1775459446223,-1600.0,0.000156,2]
[419878556,1775459446232,-2017.22837258,0.00015616,2]
[419878557,1775459446241,-152.0,0.00015629,57]
[419878558,1775459446251,-259.86957341,0.00015629,5]
[419878559,1775459446260,-500.0,0.00015636,2]
[419878560,1775459446270,-151.0,0.00015636,2]
[419878561,1775459446279,-15481.96176015,0.00015664,2]
[419878562,1775459446289,-259.0,0.00015669,2]
[419878563,1775459446298,-277.32,0.00015672,2]
[419878564,1775459446308,-1569.0,0.0001568,2]
[419878565,1775459446318,-789.87007101,0.0001568,2]
[419878566,1775459446328,-2727.0,0.0001568,2]
[419878567,1775459446337,-1155.29,0.00015684,2]
[419878568,1775459446346,-500.0,0.00015691,2]
[419878569,1775459446356,-151.0,0.00015691,2]
[419878570,1775459446365,-990.2987807,0.000157,2]
[419878571,1775459446375,-259.0,0.00015701,2]
[419878572,1775459446385,-259.0,0.00015709,2]
[419878573,1775459446394,-259.0,0.00015711,2]
[419878574,1775459446403,-150.0,0.00015712,2]
[419878575,1775459446412,-150.0,0.00015712,2]
[419878576,1775459446422,-259.0,0.00015721,2]
[419878577,1775459446431,-200.0,0.00015744,2]
[419878578,1775459446441,-1428.38747117,0.00015744,2]
[419878579,1775459446450,-771.01748645,0.00015744,2]
[419878580,1775459446459,-181.08010149,0.00015744,2]
[419878581,1775459446469,-500.0,0.00015746,2]
[419878582,1775459446480,-151.0,0.00015746,2]
[419878583,1775459446490,-242.72533113,0.00015746,2]
[419878584,1775459446499,-259.0,0.0001575,2]
[419878585,1775459446509,-252.05,0.00015753,2]
[419878586,1775459446519,-259.0,0.00015785,2]
[419878587,1775459446528,-259.0,0.00015796,2]
[419878588,1775459446537,-2000.0,0.000158,2]
[419878589,1775459446546,-500.0,0.00015801,2]
[419878590,1775459446557,-151.0,0.00015801,2]
[419878591,1775459446566,-2000.0,0.00015816,2]
[419878592,1775459446575,-25000.0,0.0001583,3]
[419878593,1775459446585,-433.0,0.00015831,2]
[419878594,1775459446594,-10000.0,0.00015833,2]
[419878595,1775459446603,-150.0,0.00015837,2]
[419878596,1775459446613,-500.0,0.00015837,2]
[419878597,1775459446622,-200.09873022,0.00015837,2]
[419878598,1775459446631,-500.0,0.00015837,2]
[419878599,1775459446641,-500.0,0.00015837,2]
[419878600,1775459446650,-500.0,0.00015837,2]
[419878601,1775459446659,-550.4581733,0.00015837,2]
[419878602,1775459446668,-500.0,0.00015837,2]
[419878603,1775459446678,-500.0,0.00015837,2]
[419878604,1775459446687,-500.0,0.00015837,2]
[419878605,1775459446696,-500.0,0.00015837,2]
[419878606,1775459446706,-500.0,0.00015837,2]
[419878607,1775459446715,-500.0,0.00015837,2]
[419878608,1775459446724,-500.0,0.00015837,2]
[419878609,1775459446734,-500.0,0.00015837,2]
[419878610,1775459446744,-332.55093908,0.00015837,2]
[419878611,1775459446752,-25000.0,0.00015838,3]
[419878612,1775459446762,-350.0,0.00015839,2]
[419878613,1775459446771,-25000.0,0.00015847,3]
[419878614,1775459446780,-25000.0,0.00015856,3]
[419878615,1775459446789,-25000.0,0.00015865,3]
[419878616,1775459446798,-350.0,0.00015868,2]
[419878617,1775459446808,-200.0,0.00015872,2]
[419878618,1775459446818,-25000.0,0.00015874,3]
[419878619,1775459446827,-25000.0,0.00015882,3]
[419878620,1775459446837,-25000.0,0.00015891,3]
[419878621,1775459446846,-4000.0,0.00015895,2]
[419878622,1775459446855,-1633.0,0.00015896,5]
[419878623,1775459446865,-1584.0,0.00015896,5]
[419878624,1775459446874,-383.571463,0.00015897,2]
[419878625,1775459446885,-198.48074007,0.00015897,2]
[419878626,1775459446894,-221.98803241,0.00015897,2]
[419878627,1775459446903,-5766.73620747,0.00015897,2]
[419878628,1775459446913,-383.571463,0.00015899,2]
[419878629,1775459446922,-5766.73620746,0.00015899,2]
[419878630,1775459446931,-1791.31,0.000159,2]
[419878631,1775459446940,-647.91466627,0.000159,2]
[419878632,1775459446949,-306.0,0.000159,2]
[419878633,1775459446959,-15481.96176015,0.000159,2]
[419878634,1775459446968,-1000.0,0.000159,2]
[419878635,1775459446977,-25000.0,0.000159,3]
[419878636,1775459446986,-313.0,0.000159,2]
[419878637,1775459446995,-383.571463,0.000159,2]
[419878638,1775459447005,-156.64232712,0.000159,2]
[419878639,1775459447014,-221.98803241,0.000159,2]
[419878640,1775459447023,-2000.0,0.000159,2]
[419878641,1775459447033,-259.0,0.00015909,2]
[419878642,1775459447042,-350.0,0.00015925,2]
[419878643,1775459447051,-259.0,0.00015929,2]
[419878644,1775459447060,-698.0,0.00015933,2]
[419878645,1775459447070,-596.0,0.00015933,2]
[419878646,1775459447080,-500.0,0.00015933,2]
[419878647,1775459447090,-1000.0,0.00015971,2]
[419878648,1775459447099,-1000.0,0.00015971,2]
[419878649,1775459447109,-1000.0,0.00015971,2]
[419878650,1775459447118,-1000.0,0.00015971,2]
[419878651,1775459447127,-1000.0,0.00015971,2]
[419878652,1775459447136,-1000.0,0.00015971,2]
[419878653,1775459447146,-1000.0,0.00015971,2]
[419878654,1775459447155,-266.452,0.00015971,2]
[419878655,1775459447164,-203.68403137,0.00015984,2]
[419878656,1775459447174,-1232.9517408,0.00015984,2]
[419878658,1775459447184,-150.0,0.00015986,2]
[419878660,1775459447193,-150.0,0.00015986,2]
[419878662,1775459447203,-500.0,0.00015989,2]
[419878664,1775459447212,-150.0,0.00015989,2]
[419878666,1775459447222,-500.0,0.00015989,2]
[419878668,1775459447231,-500.0,0.00015989,2]
[419878670,1775459447240,-150.0,0.00015989,2]
[419878672,1775459447250,-500.0,0.00015989,2]
[419878673,1775459447259,-500.0,0.00015989,2]
[419878674,1775459447269,-150.0,0.00015989,2]
[419878675,1775459447278,-500.0,0.00015989,2]
[419878676,1775459447288,-150.0,0.00015989,2]
[419878677,1775459447298,-500.0,0.00015989,2]
[419878678,1775459447308,-500.0,0.00015989,2]
[419878679,1775459447318,-150.0,0.00015989,2]
[419878680,1775459447328,-150.0,0.00015989,2]
[419878681,1775459447338,-150.0,0.00015989,2]
[419878682,1775459447347,-500.0,0.00015989,2]
[419878683,1775459447357,-150.0,0.00015989,2]
[419878684,1775459447366,-500.0,0.00015989,2]
[419878685,1775459447376,-500.0,0.00015989,2]
[419878686,1775459447386,-500.0,0.00015989,2]
[419878687,1775459447396,-500.0,0.00015989,2]
[419878688,1775459447405,-500.0,0.00015989,2]
[419878689,1775459447414,-500.0,0.00015989,2]
[419878690,1775459447423,-150.0,0.00015989,2]
[419878691,1775459447433,-150.0,0.00015989,2]
[419878692,1775459447442,-215.51274459,0.0001599,2]
[419878693,1775459447452,-215.51274459,0.0001599,2]
[419878694,1775459447461,-151.0,0.00015994,2]
[419878695,1775459447470,-500.0,0.00015996,2]
[419878696,1775459447480,-500.0,0.00015996,2]
[419878697,1775459447490,-500.0,0.00015996,2]
[419878698,1775459447499,-500.0,0.00015996,2]
[419878699,1775459447509,-629.61248699,0.00015996,2]
[419878700,1775459447519,-153.26957967,0.00015996,2]
[419878701,1775459447528,-169718.5544337,0.00015997,2]
[419878702,1775459447536,-151.0,0.00015997,2]
[419878703,1775459447546,-151.0,0.00015997,2]
[419878704,1775459447556,-41762.5522122,0.00015997,2]
[419878705,1775459447566,-6394.7435139,0.00015997,2]
[419878706,1775459447576,-405.2657005,0.00015997,2]
[419878707,1775459447585,-3118.9130439,0.00015997,2]
[419878708,1775459447595,-494.134815,0.00015997,2]
[419878709,1775459447605,-4397.298843,0.00015997,2]
[419878710,1775459447614,-4397.298843,0.00015997,2]
[419878711,1775459447624,-494.134815,0.00015997,2]
[419878712,1775459447633,-151.0,0.00015997,2]
[419878713,1775459447650,-494.134815,0.00015997,2]
[419878714,1775459447659,-4397.298843,0.00015997,2]
[419878715,1775459447669,-1693.939251,0.00015997,2]
[419878716,1775459447679,-151.0,0.00015997,2]
[419878717,1775459447689,-716.262695,0.00015997,2]
[419878718,1775459447698,-4397.298843,0.00015997,2]
[419878719,1775459447708,-494.134815,0.00015997,2]
[419878720,1775459447718,-151.0,0.00015997,2]
[419878721,1775459447728,-1693.939251,0.00015997,2]
[419878722,1775459447737,-151.0,0.00015997,2]
[419878723,1775459447747,-716.262695,0.00015997,2]
[419878724,1775459447756,-1693.939251,0.00015997,2]
[419878725,1775459447766,-151.000003,0.00015997,2]
[419878726,1775459447776,-716.262695,0.00015997,2]
[419878727,1775459447785,-10726.856407,0.00015997,2]
[419878728,1775459447795,-1693.939251,0.00015997,2]
[419878729,1775459447804,-151.0,0.00015997,2]
[419878730,1775459447814,-1266.856332,0.00015997,2]
[419878731,1775459447823,-716.262695,0.00015997,2]
[419878732,1775459447833,-10726.856407,0.00015997,2]
[419878733,1775459447843,-151.0,0.00015997,2]
[419878734,1775459447852,-1266.856332,0.00015997,2]
[419878735,1775459447862,-10726.856407,0.00015997,2]
[419878736,1775459447872,-151.0,0.00015997,2]
[419878737,1775459447882,-1266.856332,0.00015997,2]
[419878738,1775459447892,-10726.856407,0.00015997,2]
[419878739,1775459447902,-1266.856332,0.00015997,2]
[419878740,1775459447912,-151.0,0.00015997,2]
[419878741,1775459447921,-151.0,0.00015997,2]
[419878742,1775459447931,-151.0,0.00015997,2]
[419878743,1775459447940,-153.582028,0.00015997,2]
[419878744,1775459447950,-151.0,0.00015997,2]
[419878745,1775459447960,-153.582028,0.00015997,2]
[419878746,1775459447970,-153.582028,0.00015997,2]
[419878747,1775459447979,-153.582028,0.00015997,2]
[419878748,1775459447989,-151.0,0.00015997,2]
[419878749,1775459447998,-773.36273,0.00015997,2]
[419878750,1775459448008,-773.36273,0.00015997,2]
[419878751,1775459448018,-773.36273,0.00015997,2]
[419878752,1775459448027,-773.36273,0.00015997,2]
[419878753,1775459448036,-166.049568,0.00015997,2]
[419878754,1775459448046,-1181.597935,0.00015997,2]
[419878755,1775459448056,-166.049568,0.00015997,2]
[419878756,1775459448065,-1181.597935,0.00015997,2]
[419878757,1775459448075,-1025.046648,0.00015997,2]
[419878758,1775459448086,-1330.014083,0.00015997,2]
[419878759,1775459448096,-166.049568,0.00015997,2]
[419878760,1775459448107,-1181.597935,0.00015997,2]
[419878761,1775459448117,-151.0,0.00015997,2]
[419878762,1775459448128,-1025.046648,0.00015997,2]
[419878763,1775459448138,-1330.014083,0.00015997,2]
[419878764,1775459448152,-990.799636,0.00015997,2]
[419878765,1775459448162,-729.37873,0.00015997,2]
[419878766,1775459448172,-1181.597935,0.00015997,2]
[419878767,1775459448182,-166.049568,0.00015997,2]
[419878768,1775459448192,-1330.014083,0.00015997,2]
[419878769,1775459448203,-1025.046648,0.00015997,2]
[419878770,1775459448213,-362.064913,0.00015997,2]
[419878771,1775459448224,-526.569126,0.00015997,2]
[419878772,1775459448234,-990.799636,0.00015997,2]
[419878773,1775459448245,-729.37873,0.00015997,2]
[419878774,1775459448256,-362.064913,0.00015997,2]
[419878775,1775459448268,-1025.046648,0.00015997,2]
[419878776,1775459448279,-526.569126,0.00015997,2]
[419878777,1775459448289,-1330.014083,0.00015997,2]
[419878778,1775459448300,-990.799636,0.00015997,2]
[419878779,1775459448311,-151.0,0.00015997,2]
[419878780,1775459448321,-729.37873,0.00015997,2]
[419878781,1775459448332,-4573.853096,0.00015997,2]
[419878782,1775459448342,-482.864776,0.00015997,2]
[419878783,1775459448353,-362.064913,0.00015997,2]
[419878784,1775459448364,-1279.881171,0.00015997,2]
[419878785,1775459448375,-526.569126,0.00015997,2]
[419878786,1775459448385,-151.0,0.00015997,2]
[419878787,1775459448395,-990.799636,0.00015997,2]
[419878788,1775459448406,-733.724783,0.00015997,2]
[419878789,1775459448417,-729.37873,0.00015997,2]
[419878790,1775459448428,-482.864776,0.00015997,2]
[419878791,1775459448439,-362.064913,0.00015997,2]
[419878792,1775459448449,-4573.853096,0.00015997,2]
[419878793,1775459448460,-526.569126,0.00015997,2]
[419878794,1775459448471,-1279.881171,0.00015997,2]
[419878795,1775459448481,-151.0,0.00015997,2]
[419878796,1775459448492,-733.724783,0.00015997,2]
[419878797,1775459448502,-589.052892,0.00015997,2]
[419878798,1775459448512,-151.0,0.00015997,2]
[419878799,1775459448522,-482.864776,0.00015997,2]
[419878800,1775459448532,-4573.853096,0.00015997,2]
[419878801,1775459448543,-1279.881171,0.00015997,2]